[Event "Titled Tuesday Blitz February 21 Early 2023"]
[White "I_KID_you_not"]
[Black "Khamdamova, Afruza"]
[BlackFideId "14210444"]
[WhiteElo "2364"]
[BlackElo "2162"]
[Result "0-1"]
[Round "10"]
[TimeControl "180+2"]
[Date "2023.02.21"]
[WhiteClock "0:00:45"]
[BlackClock "0:00:04"]

1. e4 {[%clk 0:03:00]}  e5 {[%clk 0:03:00]} 2. Bc4 {[%clk 0:03:00]}  Nf6 {[%clk 0:02:59]} 3. d3 {[%clk 0:03:01]}  c6 {[%clk 0:02:56]} 4. Nf3 {[%clk 0:03:00]}  d5 {[%clk 0:02:48]} 5. Bb3 {[%clk 0:03:01]}  Bd6 {[%clk 0:02:35]} 6. Nc3 {[%clk 0:03:00]}  d4 {[%clk 0:02:29]} 7. Ne2 {[%clk 0:03:00]}  O-O {[%clk 0:02:29]} 8. O-O {[%clk 0:02:52]}  Bg4 {[%clk 0:02:29]} 9. Ng3 {[%clk 0:02:51]}  Qd7 {[%clk 0:02:29]} 10. h3 {[%clk 0:02:50]}  Be6 {[%clk 0:02:24]} 11. c3 {[%clk 0:02:42]}  dxc3 {[%clk 0:02:14]} 12. bxc3 {[%clk 0:02:42]}  Bxb3 {[%clk 0:02:13]} 13. Qxb3 {[%clk 0:02:41]}  Na6 {[%clk 0:02:12]} 14. Bg5 {[%clk 0:02:29]}  Nc5 {[%clk 0:02:07]} 15. Qc2 {[%clk 0:02:29]}  Qe6 {[%clk 0:01:50]} 16. Nf5 {[%clk 0:02:24]}  Bc7 {[%clk 0:01:43]} 17. Rfe1 {[%clk 0:02:16]}  Rad8 {[%clk 0:01:28]} 18. Rad1 {[%clk 0:02:15]}  Rd7 {[%clk 0:01:28]} 19. d4 {[%clk 0:02:09]}  Na6 {[%clk 0:01:27]} 20. d5 {[%clk 0:02:06]}  cxd5 {[%clk 0:01:21]} 21. exd5 {[%clk 0:02:06]}  Nxd5 {[%clk 0:01:15]} 22. c4 {[%clk 0:01:45]}  Ndb4 {[%clk 0:01:11]} 23. Qe4 {[%clk 0:01:45]}  Nc5 {[%clk 0:01:09]} 24. Qg4 {[%clk 0:01:42]}  g6 {[%clk 0:00:57]} 25. Nh6+ {[%clk 0:01:32]}  Kg7 {[%clk 0:00:57]} 26. Qh4 {[%clk 0:01:06]}  Rxd1 {[%clk 0:00:45]} 27. Rxd1 {[%clk 0:01:06]}  f6 {[%clk 0:00:14]} 28. Be3 {[%clk 0:01:06]}  Ncd3 {[%clk 0:00:13]} 29. Ng4 {[%clk 0:01:03]}  e4 {[%clk 0:00:10]} 30. Nd4 {[%clk 0:00:59]}  Qf7 {[%clk 0:00:02]} 31. Bh6+ {[%clk 0:00:56]}  Kg8 {[%clk 0:00:03]} 32. Bxf8 {[%clk 0:00:55]}  Kxf8 {[%clk 0:00:03]} 33. Ne3 {[%clk 0:00:52]}  Bb6 {[%clk 0:00:03]} 34. Nb3 {[%clk 0:00:51]}  f5 {[%clk 0:00:02]} 35. Qg3 {[%clk 0:00:50]}  f4 {[%clk 0:00:03]} 36. Qg4 {[%clk 0:00:50]}  fxe3 {[%clk 0:00:03]} 37. Qc8+ {[%clk 0:00:49]}  Kg7 {[%clk 0:00:03]} 38. fxe3 {[%clk 0:00:46]}  Bxe3+ {[%clk 0:00:03]} 39. Kh2 {[%clk 0:00:45]}  Qf4+ {[%clk 0:00:04]} 0-1


[Site "https://www.chess.com"]

[Event "Titled Tuesday Blitz February 21 Early 2023"]
[White "Cunha, Lucas Aguiar"]
[Black "Melikhov, Evgeny V."]
[WhiteFideId "2125404"]
[BlackFideId "4122046"]
[WhiteElo "2309"]
[BlackElo "2269"]
[Result "1-0"]
[Round "10"]
[TimeControl "180+2"]
[Date "2023.02.21"]
[WhiteClock "0:01:48"]
[BlackClock "0:00:04"]

1. e4 {[%clk 0:02:59]}  e5 {[%clk 0:02:58]} 2. Nf3 {[%clk 0:02:59]}  Nc6 {[%clk 0:02:58]} 3. Nc3 {[%clk 0:02:59]}  Nf6 {[%clk 0:02:58]} 4. Bb5 {[%clk 0:02:59]}  Bb4 {[%clk 0:02:57]} 5. O-O {[%clk 0:02:59]}  O-O {[%clk 0:02:56]} 6. d3 {[%clk 0:02:59]}  d6 {[%clk 0:02:57]} 7. Bg5 {[%clk 0:02:59]}  Bxc3 {[%clk 0:02:56]} 8. bxc3 {[%clk 0:02:59]}  h6 {[%clk 0:02:55]} 9. Bh4 {[%clk 0:02:59]}  a6 {[%clk 0:02:55]} 10. Bxc6 {[%clk 0:02:57]}  bxc6 {[%clk 0:02:55]} 11. Re1 {[%clk 0:02:57]}  Qe7 {[%clk 0:02:43]} 12. Nd2 {[%clk 0:02:56]}  Qe6 {[%clk 0:02:35]} 13. Nf1 {[%clk 0:02:53]}  Qg4 {[%clk 0:02:20]} 14. Bxf6 {[%clk 0:02:50]}  Qxd1 {[%clk 0:02:15]} 15. Rexd1 {[%clk 0:02:51]}  gxf6 {[%clk 0:02:15]} 16. Ne3 {[%clk 0:02:51]}  h5 {[%clk 0:02:07]} 17. Rdb1 {[%clk 0:02:50]}  Kg7 {[%clk 0:02:04]} 18. f3 {[%clk 0:02:46]}  Kg6 {[%clk 0:02:01]} 19. g4 {[%clk 0:02:35]}  h4 {[%clk 0:01:51]} 20. Kg2 {[%clk 0:02:29]}  Kg5 {[%clk 0:01:49]} 21. Kf2 {[%clk 0:02:27]}  Be6 {[%clk 0:01:38]} 22. Rb7 {[%clk 0:02:24]}  Rfc8 {[%clk 0:01:35]} 23. a4 {[%clk 0:02:24]}  d5 {[%clk 0:01:23]} 24. h3 {[%clk 0:02:15]}  Rab8 {[%clk 0:01:00]} 25. Rab1 {[%clk 0:02:14]}  Rxb7 {[%clk 0:01:00]} 26. Rxb7 {[%clk 0:02:12]}  Kg6 {[%clk 0:00:52]} 27. Ra7 {[%clk 0:02:09]}  Rb8 {[%clk 0:00:33]} 28. Rxa6 {[%clk 0:02:08]}  Rb2 {[%clk 0:00:31]} 29. Rxc6 {[%clk 0:02:06]}  d4 {[%clk 0:00:32]} 30. cxd4 {[%clk 0:02:05]}  exd4 {[%clk 0:00:32]} 31. Ng2 {[%clk 0:02:06]}  Bb3 {[%clk 0:00:28]} 32. Ne1 {[%clk 0:02:04]}  Bxa4 {[%clk 0:00:27]} 33. Rxc7 {[%clk 0:02:04]}  Rb1 {[%clk 0:00:19]} 34. Rc4 {[%clk 0:02:01]}  Ra1 {[%clk 0:00:15]} 35. Rxd4 {[%clk 0:02:00]}  Bb5 {[%clk 0:00:15]} 36. Ng2 {[%clk 0:01:56]}  Rc1 {[%clk 0:00:14]} 37. Ne3 {[%clk 0:01:56]}  Bc6 {[%clk 0:00:13]} 38. Rd6 {[%clk 0:01:55]}  Ba4 {[%clk 0:00:12]} 39. e5 {[%clk 0:01:51]}  Rh1 {[%clk 0:00:07]} 40. Rxf6+ {[%clk 0:01:51]}  Kg7 {[%clk 0:00:07]} 41. Nf5+ {[%clk 0:01:50]}  Kg8 {[%clk 0:00:06]} 42. Nh6+ {[%clk 0:01:49]}  Kg7 {[%clk 0:00:05]} 43. Nxf7 {[%clk 0:01:49]}  Rh2+ {[%clk 0:00:05]} 44. Ke3 {[%clk 0:01:49]}  Rxh3 {[%clk 0:00:05]} 45. Ng5 {[%clk 0:01:48]}  Rh1 {[%clk 0:00:05]} 46. Ne6+ {[%clk 0:01:47]}  Kg8 {[%clk 0:00:04]} 47. g5 {[%clk 0:01:47]}  h3 {[%clk 0:00:04]} 48. g6 {[%clk 0:01:48]} 1-0


[Site "https://www.chess.com"]

[Event "Titled Tuesday Blitz February 21 Early 2023"]
[White "Liu, Casper"]
[Black "Zacurdajev, Dmitry"]
[WhiteFideId "1454153"]
[BlackFideId "4196309"]
[WhiteElo "2278"]
[BlackElo "2273"]
[Result "0-1"]
[Round "10"]
[TimeControl "180+2"]
[Date "2023.02.21"]
[WhiteClock "0:00:19"]
[BlackClock "0:00:28"]

1. d4 {[%clk 0:03:00]}  d5 {[%clk 0:02:59]} 2. Bf4 {[%clk 0:03:01]}  e6 {[%clk 0:02:59]} 3. e3 {[%clk 0:03:02]}  Bd6 {[%clk 0:02:59]} 4. Nd2 {[%clk 0:03:02]}  Nf6 {[%clk 0:02:58]} 5. Bd3 {[%clk 0:03:02]}  O-O {[%clk 0:02:58]} 6. Ne2 {[%clk 0:03:01]}  b6 {[%clk 0:02:58]} 7. O-O {[%clk 0:03:01]}  c5 {[%clk 0:02:56]} 8. Bxd6 {[%clk 0:03:02]}  Qxd6 {[%clk 0:02:56]} 9. dxc5 {[%clk 0:03:03]}  bxc5 {[%clk 0:02:56]} 10. c4 {[%clk 0:03:04]}  Bb7 {[%clk 0:02:52]} 11. cxd5 {[%clk 0:03:04]}  exd5 {[%clk 0:02:51]} 12. Nc4 {[%clk 0:03:01]}  Qe7 {[%clk 0:02:43]} 13. Na5 {[%clk 0:03:00]}  Ba6 {[%clk 0:02:34]} 14. Nc6 {[%clk 0:02:54]}  Nxc6 {[%clk 0:02:32]} 15. Bxa6 {[%clk 0:02:54]}  Rab8 {[%clk 0:02:32]} 16. b3 {[%clk 0:02:54]}  Ne4 {[%clk 0:02:27]} 17. Rc1 {[%clk 0:02:53]}  Rfd8 {[%clk 0:02:26]} 18. Bd3 {[%clk 0:02:53]}  Nb4 {[%clk 0:02:21]} 19. Bxe4 {[%clk 0:02:36]}  dxe4 {[%clk 0:02:22]} 20. Qe1 {[%clk 0:02:33]}  Nd3 {[%clk 0:02:20]} 21. Qa5 {[%clk 0:02:33]}  Nxc1 {[%clk 0:02:19]} 22. Rxc1 {[%clk 0:02:34]}  Rbc8 {[%clk 0:02:13]} 23. Nf4 {[%clk 0:02:34]}  h6 {[%clk 0:02:10]} 24. g3 {[%clk 0:02:34]}  Qe5 {[%clk 0:01:56]} 25. Rc2 {[%clk 0:02:19]}  Qf5 {[%clk 0:01:44]} 26. Kg2 {[%clk 0:02:19]}  Qg4 {[%clk 0:01:44]} 27. Rxc5 {[%clk 0:01:57]}  Qf3+ {[%clk 0:01:42]} 28. Kh3 {[%clk 0:01:57]}  Rxc5 {[%clk 0:01:28]} 29. Qxc5 {[%clk 0:01:52]}  Qxf2 {[%clk 0:01:24]} 30. Qe7 {[%clk 0:01:47]}  Rd2 {[%clk 0:01:09]} 31. Qe8+ {[%clk 0:01:45]}  Kh7 {[%clk 0:01:10]} 32. Qxf7 {[%clk 0:01:20]}  Qf1+ {[%clk 0:01:03]} 33. Kg4 {[%clk 0:01:13]}  Qf3+ {[%clk 0:00:53]} 34. Kh3 {[%clk 0:01:12]}  Qf1+ {[%clk 0:00:43]} 35. Kg4 {[%clk 0:01:13]}  Qd1+ {[%clk 0:00:44]} 36. Kf5 {[%clk 0:01:11]}  Rd6 {[%clk 0:00:39]} 37. Kxe4 {[%clk 0:00:38]}  Qh1+ {[%clk 0:00:35]} 38. Ke5 {[%clk 0:00:33]}  Rf6 {[%clk 0:00:34]} 39. Qxa7 {[%clk 0:00:31]}  Qa1+ {[%clk 0:00:31]} 40. Ke4 {[%clk 0:00:26]}  Qh1+ {[%clk 0:00:30]} 41. Ke5 {[%clk 0:00:26]}  Qf3 {[%clk 0:00:29]} 42. e4 {[%clk 0:00:20]}  Qc3+ {[%clk 0:00:29]} 43. Qd4 {[%clk 0:00:20]}  Qc7+ {[%clk 0:00:29]} 44. Kd5 {[%clk 0:00:20]}  Rd6+ {[%clk 0:00:29]} 45. Ke5 {[%clk 0:00:20]}  Qe7+ {[%clk 0:00:29]} 46. Kf5 {[%clk 0:00:19]}  Qg5# {[%clk 0:00:28]} 0-1


[Site "https://www.chess.com"]

[Event "Titled Tuesday Blitz February 21 Early 2023"]
[White "Miszler, Levente"]
[Black "Goroshkov, Maksym"]
[WhiteFideId "763276"]
[BlackFideId "14142716"]
[WhiteElo "2271"]
[BlackElo "2287"]
[Result "1/2-1/2"]
[Round "10"]
[TimeControl "180+2"]
[Date "2023.02.21"]
[WhiteClock "0:00:23"]
[BlackClock "0:00:37"]

1. Nf3 {[%clk 0:03:00]}  Nf6 {[%clk 0:02:59]} 2. c4 {[%clk 0:03:00]}  g6 {[%clk 0:03:00]} 3. g3 {[%clk 0:03:01]}  Bg7 {[%clk 0:03:00]} 4. Bg2 {[%clk 0:03:01]}  O-O {[%clk 0:03:01]} 5. O-O {[%clk 0:03:02]}  c5 {[%clk 0:03:02]} 6. Nc3 {[%clk 0:03:01]}  Nc6 {[%clk 0:03:02]} 7. d3 {[%clk 0:03:02]}  e5 {[%clk 0:03:02]} 8. a3 {[%clk 0:03:01]}  d6 {[%clk 0:03:02]} 9. Rb1 {[%clk 0:03:02]}  a5 {[%clk 0:03:02]} 10. Ne1 {[%clk 0:03:01]}  Bf5 {[%clk 0:02:58]} 11. Nc2 {[%clk 0:03:01]}  Qd7 {[%clk 0:02:57]} 12. b4 {[%clk 0:03:00]}  axb4 {[%clk 0:02:56]} 13. axb4 {[%clk 0:03:01]}  Bh3 {[%clk 0:02:56]} 14. bxc5 {[%clk 0:03:00]}  dxc5 {[%clk 0:02:48]} 15. Ne3 {[%clk 0:02:44]}  Bxg2 {[%clk 0:02:45]} 16. Kxg2 {[%clk 0:02:45]}  Nd4 {[%clk 0:02:33]} 17. Ned5 {[%clk 0:02:44]}  Nxd5 {[%clk 0:02:32]} 18. Nxd5 {[%clk 0:02:45]}  b5 {[%clk 0:02:33]} 19. e3 {[%clk 0:02:41]}  Ne6 {[%clk 0:02:27]} 20. Rxb5 {[%clk 0:02:33]}  f5 {[%clk 0:02:24]} 21. Kg1 {[%clk 0:02:29]}  f4 {[%clk 0:02:24]} 22. exf4 {[%clk 0:02:24]}  exf4 {[%clk 0:02:23]} 23. Nxf4 {[%clk 0:02:22]}  Nd4 {[%clk 0:02:17]} 24. Rb1 {[%clk 0:02:14]}  Ra2 {[%clk 0:02:14]} 25. Be3 {[%clk 0:02:13]}  g5 {[%clk 0:02:08]} 26. Bxd4 {[%clk 0:02:10]}  Bxd4 {[%clk 0:02:06]} 27. Ne2 {[%clk 0:02:10]}  Qg4 {[%clk 0:01:49]} 28. Nxd4 {[%clk 0:01:51]}  Qxd4 {[%clk 0:01:50]} 29. Qe1 {[%clk 0:01:49]}  Rf7 {[%clk 0:01:45]} 30. Rb8+ {[%clk 0:01:47]}  Kg7 {[%clk 0:01:44]} 31. Qe4 {[%clk 0:01:28]}  Qf6 {[%clk 0:01:35]} 32. Qe8 {[%clk 0:01:00]}  Rxf2 {[%clk 0:01:22]} 33. Qh8+ {[%clk 0:00:58]}  Kh6 {[%clk 0:01:22]} 34. Qxf6+ {[%clk 0:00:56]}  R2xf6 {[%clk 0:01:23]} 35. Rxf6+ {[%clk 0:00:55]}  Rxf6 {[%clk 0:01:24]} 36. Rd8 {[%clk 0:00:54]}  Rf3 {[%clk 0:01:13]} 37. Rd5 {[%clk 0:00:51]}  Kg6 {[%clk 0:01:10]} 38. Kg2 {[%clk 0:00:51]}  g4 {[%clk 0:01:11]} 39. h3 {[%clk 0:00:51]}  h5 {[%clk 0:01:11]} 40. hxg4 {[%clk 0:00:48]}  hxg4 {[%clk 0:01:12]} 41. Kh2 {[%clk 0:00:43]}  Rf2+ {[%clk 0:01:10]} 42. Kg1 {[%clk 0:00:43]}  Rf3 {[%clk 0:01:11]} 43. Kg2 {[%clk 0:00:42]}  Kf6 {[%clk 0:01:11]} 44. Rd6+ {[%clk 0:00:41]}  Kf5 {[%clk 0:01:03]} 45. Rd5+ {[%clk 0:00:42]}  Kf6 {[%clk 0:01:03]} 46. Rxc5 {[%clk 0:00:39]}  Rxd3 {[%clk 0:01:04]} 47. Rd5 {[%clk 0:00:39]}  Rc3 {[%clk 0:01:03]} 48. Rd4 {[%clk 0:00:39]}  Rc2+ {[%clk 0:01:03]} 49. Kf1 {[%clk 0:00:37]}  Kf5 {[%clk 0:01:03]} 50. Rf4+ {[%clk 0:00:37]}  Kg5 {[%clk 0:01:03]} 51. Rd4 {[%clk 0:00:37]}  Kf5 {[%clk 0:01:02]} 52. Rd5+ {[%clk 0:00:36]}  Ke4 {[%clk 0:01:01]} 53. Rd8 {[%clk 0:00:26]}  Rxc4 {[%clk 0:01:00]} 54. Rf8 {[%clk 0:00:27]}  Rc1+ {[%clk 0:00:58]} 55. Kf2 {[%clk 0:00:27]}  Rc2+ {[%clk 0:00:58]} 56. Kf1 {[%clk 0:00:26]}  Ke3 {[%clk 0:00:42]} 57. Rf4 {[%clk 0:00:25]}  Rd2 {[%clk 0:00:37]} 58. Rxg4 {[%clk 0:00:25]}  Kf3 {[%clk 0:00:37]} 59. Rf4+ {[%clk 0:00:24]}  Kxg3 {[%clk 0:00:38]} 60. Rf8 {[%clk 0:00:24]}  Rd5 {[%clk 0:00:37]} 61. Rg8+ {[%clk 0:00:23]} 1/2-1/2


[Site "https://www.chess.com"]

[Event "Titled Tuesday Blitz February 21 Early 2023"]
[White "Florescu, Codrut-Constantin"]
[Black "Fernandez Garcia, Gumersindo"]
[WhiteFideId "1202200"]
[BlackFideId "24516740"]
[WhiteElo "2259"]
[BlackElo "2160"]
[Result "0-1"]
[Round "10"]
[TimeControl "180+2"]
[Date "2023.02.21"]
[WhiteClock "0:00:19"]
[BlackClock "0:01:08"]

1. e4 {[%clk 0:03:00]}  Nf6 {[%clk 0:02:57]} 2. e5 {[%clk 0:03:00]}  Nd5 {[%clk 0:02:57]} 3. d4 {[%clk 0:03:01]}  Nb6 {[%clk 0:02:56]} 4. Nf3 {[%clk 0:03:00]}  d6 {[%clk 0:02:57]} 5. Be2 {[%clk 0:02:51]}  g6 {[%clk 0:02:57]} 6. O-O {[%clk 0:02:40]}  Bg7 {[%clk 0:02:57]} 7. Nc3 {[%clk 0:02:35]}  O-O {[%clk 0:02:56]} 8. h3 {[%clk 0:02:20]}  Nc6 {[%clk 0:02:52]} 9. Bf4 {[%clk 0:02:19]}  Bf5 {[%clk 0:02:45]} 10. g4 {[%clk 0:02:06]}  dxe5 {[%clk 0:02:41]} 11. dxe5 {[%clk 0:01:50]}  Be6 {[%clk 0:02:40]} 12. b3 {[%clk 0:01:33]}  Nd5 {[%clk 0:02:32]} 13. Nxd5 {[%clk 0:01:31]}  Qxd5 {[%clk 0:02:33]} 14. Qxd5 {[%clk 0:01:28]}  Bxd5 {[%clk 0:02:34]} 15. Rfe1 {[%clk 0:01:25]}  f6 {[%clk 0:02:30]} 16. exf6 {[%clk 0:01:25]}  Rxf6 {[%clk 0:02:28]} 17. Bg5 {[%clk 0:01:15]}  Rxf3 {[%clk 0:02:17]} 18. Bxf3 {[%clk 0:01:15]}  Bxf3 {[%clk 0:02:18]} 19. Rab1 {[%clk 0:01:14]}  Bf6 {[%clk 0:02:17]} 20. Bxf6 {[%clk 0:01:13]}  exf6 {[%clk 0:02:18]} 21. Re3 {[%clk 0:01:12]}  Ne5 {[%clk 0:02:11]} 22. Kh2 {[%clk 0:01:05]}  g5 {[%clk 0:02:06]} 23. Kg3 {[%clk 0:01:03]}  Bc6 {[%clk 0:02:06]} 24. f4 {[%clk 0:01:01]}  gxf4+ {[%clk 0:02:06]} 25. Kxf4 {[%clk 0:01:01]}  Kf7 {[%clk 0:02:05]} 26. Rd1 {[%clk 0:00:59]}  h5 {[%clk 0:02:03]} 27. g5 {[%clk 0:00:56]}  Ng6+ {[%clk 0:02:02]} 28. Kf5 {[%clk 0:00:55]}  Ne7+ {[%clk 0:01:58]} 29. Rxe7+ {[%clk 0:00:54]}  Kxe7 {[%clk 0:01:58]} 30. Re1+ {[%clk 0:00:45]}  Kf8 {[%clk 0:01:47]} 31. gxf6 {[%clk 0:00:42]}  Re8 {[%clk 0:01:42]} 32. Rd1 {[%clk 0:00:42]}  Be4+ {[%clk 0:01:37]} 33. Kg5 {[%clk 0:00:41]}  Bc6 {[%clk 0:01:23]} 34. c4 {[%clk 0:00:33]}  Re3 {[%clk 0:01:22]} 35. h4 {[%clk 0:00:27]}  Rg3+ {[%clk 0:01:20]} 36. Kf5 {[%clk 0:00:27]}  Kf7 {[%clk 0:01:18]} 37. Rd8 {[%clk 0:00:23]}  Rf3+ {[%clk 0:01:18]} 38. Kg5 {[%clk 0:00:23]}  Rxf6 {[%clk 0:01:15]} 39. Rc8 {[%clk 0:00:22]}  Rg6+ {[%clk 0:01:14]} 40. Kf5 {[%clk 0:00:19]}  Bd7+ {[%clk 0:01:08]} 0-1


[Site "https://www.chess.com"]

[Event "Titled Tuesday Blitz February 21 Early 2023"]
[White "Pourkashiyan, Atousa"]
[Black "gshwbedhkhd"]
[WhiteFideId "12502014"]
[WhiteElo "2282"]
[BlackElo "2556"]
[Result "1/2-1/2"]
[Round "10"]
[TimeControl "180+2"]
[Date "2023.02.21"]
[WhiteClock "0:00:17"]
[BlackClock "0:00:09"]

1. e4 {[%clk 0:02:43]}  c5 {[%clk 0:02:58]} 2. Nf3 {[%clk 0:02:43]}  e6 {[%clk 0:02:58]} 3. d4 {[%clk 0:02:41]}  cxd4 {[%clk 0:02:59]} 4. Nxd4 {[%clk 0:02:42]}  Nf6 {[%clk 0:03:00]} 5. Nc3 {[%clk 0:02:40]}  Nc6 {[%clk 0:03:00]} 6. Ndb5 {[%clk 0:02:36]}  Bc5 {[%clk 0:02:59]} 7. Nd6+ {[%clk 0:02:33]}  Ke7 {[%clk 0:02:52]} 8. Bf4 {[%clk 0:02:32]}  e5 {[%clk 0:02:46]} 9. Nf5+ {[%clk 0:02:30]}  Kf8 {[%clk 0:02:45]} 10. Bg5 {[%clk 0:02:29]}  Bb4 {[%clk 0:02:42]} 11. Bc4 {[%clk 0:02:23]}  h6 {[%clk 0:01:37]} 12. Bxf6 {[%clk 0:01:34]}  Qxf6 {[%clk 0:01:38]} 13. O-O {[%clk 0:01:34]}  Bxc3 {[%clk 0:01:32]} 14. bxc3 {[%clk 0:01:35]}  d5 {[%clk 0:01:21]} 15. Qxd5 {[%clk 0:01:32]}  Bxf5 {[%clk 0:01:20]} 16. exf5 {[%clk 0:01:33]}  Qxf5 {[%clk 0:01:21]} 17. f4 {[%clk 0:01:27]}  Rd8 {[%clk 0:01:01]} 18. Qc5+ {[%clk 0:01:27]}  Kg8 {[%clk 0:01:01]} 19. fxe5 {[%clk 0:01:26]}  Qxe5 {[%clk 0:01:01]} 20. Bxf7+ {[%clk 0:01:17]}  Kh7 {[%clk 0:01:00]} 21. Qc4 {[%clk 0:01:01]}  Rhf8 {[%clk 0:00:52]} 22. Rae1 {[%clk 0:00:54]}  Qg5 {[%clk 0:00:40]} 23. Qe4+ {[%clk 0:00:43]}  Kh8 {[%clk 0:00:39]} 24. Rf5 {[%clk 0:00:39]}  Qd2 {[%clk 0:00:34]} 25. Ref1 {[%clk 0:00:38]}  Qxc3 {[%clk 0:00:33]} 26. Kh1 {[%clk 0:00:28]}  Qb4 {[%clk 0:00:18]} 27. Qe2 {[%clk 0:00:21]}  Nd4 {[%clk 0:00:17]} 28. Qe4 {[%clk 0:00:19]}  Qc3 {[%clk 0:00:14]} 29. R5f2 {[%clk 0:00:19]}  Qc6 {[%clk 0:00:11]} 30. Qg4 {[%clk 0:00:16]}  Qc5 {[%clk 0:00:10]} 31. h3 {[%clk 0:00:16]}  Nc6 {[%clk 0:00:07]} 32. Rf3 {[%clk 0:00:14]}  Ne5 {[%clk 0:00:07]} 33. Qh5 {[%clk 0:00:13]}  Qe7 {[%clk 0:00:03]} 34. Rf5 {[%clk 0:00:12]}  Rxf7 {[%clk 0:00:03]} 35. Rxf7 {[%clk 0:00:13]}  Nxf7 {[%clk 0:00:04]} 36. Qxf7 {[%clk 0:00:13]}  Qxf7 {[%clk 0:00:04]} 37. Rxf7 {[%clk 0:00:14]}  b6 {[%clk 0:00:04]} 38. Rxa7 {[%clk 0:00:14]}  Rd2 {[%clk 0:00:04]} 39. Rc7 {[%clk 0:00:14]}  Rd1+ {[%clk 0:00:04]} 40. Kh2 {[%clk 0:00:14]}  Ra1 {[%clk 0:00:05]} 41. Rc6 {[%clk 0:00:12]}  Rxa2 {[%clk 0:00:05]} 42. Rxb6 {[%clk 0:00:13]}  Rxc2 {[%clk 0:00:05]} 43. Rb5 {[%clk 0:00:13]}  Rc8 {[%clk 0:00:05]} 44. Rb4 {[%clk 0:00:14]}  Rf8 {[%clk 0:00:05]} 45. Rg4 {[%clk 0:00:15]}  Kg8 {[%clk 0:00:04]} 46. Kg3 {[%clk 0:00:15]}  Kh7 {[%clk 0:00:05]} 47. Rf4 {[%clk 0:00:15]}  Rxf4 {[%clk 0:00:05]} 48. Kxf4 {[%clk 0:00:16]}  Kg6 {[%clk 0:00:05]} 49. Kg4 {[%clk 0:00:16]}  Kf6 {[%clk 0:00:06]} 50. Kf4 {[%clk 0:00:16]}  Kg6 {[%clk 0:00:06]} 51. g4 {[%clk 0:00:15]}  Kf6 {[%clk 0:00:06]} 52. h4 {[%clk 0:00:16]}  g5+ {[%clk 0:00:06]} 53. hxg5+ {[%clk 0:00:14]}  hxg5+ {[%clk 0:00:07]} 54. Kf3 {[%clk 0:00:14]}  Ke5 {[%clk 0:00:07]} 55. Ke3 {[%clk 0:00:14]}  Kd5 {[%clk 0:00:08]} 56. Kd3 {[%clk 0:00:15]}  Ke5 {[%clk 0:00:08]} 57. Ke3 {[%clk 0:00:16]}  Kd5 {[%clk 0:00:09]} 58. Kd3 {[%clk 0:00:16]}  Ke5 {[%clk 0:00:09]} 59. Ke3 {[%clk 0:00:17]} 1/2-1/2


[Site "https://www.chess.com"]

[Event "Titled Tuesday Blitz February 21 Early 2023"]
[White "Rego, Pedro Filipe"]
[Black "Hirneise, Jens"]
[WhiteFideId "1904310"]
[BlackFideId "24614734"]
[WhiteElo "2312"]
[BlackElo "2277"]
[Result "1-0"]
[Round "10"]
[TimeControl "180+2"]
[Date "2023.02.21"]
[WhiteClock "0:00:34"]
[BlackClock "0:00:17"]

1. e4 {[%clk 0:03:00]}  e6 {[%clk 0:02:59]} 2. d4 {[%clk 0:03:00]}  d5 {[%clk 0:03:00]} 3. Nc3 {[%clk 0:03:01]}  Nf6 {[%clk 0:02:58]} 4. Bg5 {[%clk 0:02:58]}  dxe4 {[%clk 0:02:54]} 5. Nxe4 {[%clk 0:02:56]}  Nbd7 {[%clk 0:02:54]} 6. Nxf6+ {[%clk 0:02:54]}  Nxf6 {[%clk 0:02:53]} 7. Nf3 {[%clk 0:02:54]}  c5 {[%clk 0:02:48]} 8. dxc5 {[%clk 0:02:28]}  Qa5+ {[%clk 0:02:34]} 9. c3 {[%clk 0:02:23]}  Qxc5 {[%clk 0:02:34]} 10. Qd4 {[%clk 0:02:16]}  Qxd4 {[%clk 0:02:29]} 11. Nxd4 {[%clk 0:02:17]}  Bd7 {[%clk 0:02:25]} 12. Bb5 {[%clk 0:02:14]}  Bc5 {[%clk 0:02:20]} 13. O-O-O {[%clk 0:02:07]}  Bxb5 {[%clk 0:01:54]} 14. Nxb5 {[%clk 0:02:05]}  Ke7 {[%clk 0:01:53]} 15. Rd2 {[%clk 0:01:49]}  Rad8 {[%clk 0:01:50]} 16. Rhd1 {[%clk 0:01:48]}  Rxd2 {[%clk 0:01:44]} 17. Rxd2 {[%clk 0:01:49]}  Rd8 {[%clk 0:01:42]} 18. Rxd8 {[%clk 0:01:24]}  Kxd8 {[%clk 0:01:43]} 19. f3 {[%clk 0:01:25]}  a6 {[%clk 0:01:35]} 20. Nd4 {[%clk 0:01:20]}  Bxd4 {[%clk 0:01:30]} 21. cxd4 {[%clk 0:01:21]}  Kd7 {[%clk 0:01:29]} 22. Bxf6 {[%clk 0:01:17]}  gxf6 {[%clk 0:01:30]} 23. Kc2 {[%clk 0:01:18]}  Kd6 {[%clk 0:01:28]} 24. Kc3 {[%clk 0:01:15]}  Kd5 {[%clk 0:01:28]} 25. b3 {[%clk 0:01:14]}  h5 {[%clk 0:00:47]} 26. g3 {[%clk 0:01:10]}  f5 {[%clk 0:00:34]} 27. Kd3 {[%clk 0:01:06]}  f6 {[%clk 0:00:30]} 28. h3 {[%clk 0:01:03]}  b5 {[%clk 0:00:23]} 29. a3 {[%clk 0:01:01]}  a5 {[%clk 0:00:20]} 30. g4 {[%clk 0:00:55]}  hxg4 {[%clk 0:00:20]} 31. fxg4 {[%clk 0:00:56]}  fxg4 {[%clk 0:00:20]} 32. hxg4 {[%clk 0:00:56]}  e5 {[%clk 0:00:20]} 33. dxe5 {[%clk 0:00:52]}  Kxe5 {[%clk 0:00:19]} 34. Ke3 {[%clk 0:00:51]}  Kd5 {[%clk 0:00:14]} 35. Kf4 {[%clk 0:00:46]}  a4 {[%clk 0:00:14]} 36. bxa4 {[%clk 0:00:46]}  bxa4 {[%clk 0:00:15]} 37. Kf5 {[%clk 0:00:46]}  Kc4 {[%clk 0:00:16]} 38. Kxf6 {[%clk 0:00:46]}  Kb3 {[%clk 0:00:17]} 39. g5 {[%clk 0:00:47]}  Kxa3 {[%clk 0:00:18]} 40. g6 {[%clk 0:00:47]}  Kb3 {[%clk 0:00:18]} 41. g7 {[%clk 0:00:46]}  a3 {[%clk 0:00:18]} 42. g8=Q+ {[%clk 0:00:46]}  Kb2 {[%clk 0:00:19]} 43. Qg2+ {[%clk 0:00:45]}  Kb1 {[%clk 0:00:19]} 44. Qf1+ {[%clk 0:00:45]}  Kb2 {[%clk 0:00:20]} 45. Qe2+ {[%clk 0:00:45]}  Kb1 {[%clk 0:00:20]} 46. Qb5+ {[%clk 0:00:44]}  Ka1 {[%clk 0:00:20]} 47. Qe5+ {[%clk 0:00:36]}  Kb1 {[%clk 0:00:20]} 48. Qe4+ {[%clk 0:00:36]}  Kb2 {[%clk 0:00:18]} 49. Qb4+ {[%clk 0:00:35]}  Ka2 {[%clk 0:00:16]} 50. Ke5 {[%clk 0:00:34]}  Ka1 {[%clk 0:00:17]} 51. Qxa3+ {[%clk 0:00:34]} 1-0


[Site "https://www.chess.com"]

[Event "Titled Tuesday Blitz February 21 Early 2023"]
[White "Fiorito, Francisco"]
[Black "Carrasco Miranda, Andres"]
[WhiteFideId "180165"]
[BlackFideId "3405990"]
[WhiteElo "2305"]
[BlackElo "2240"]
[Result "1-0"]
[Round "10"]
[TimeControl "180+2"]
[Date "2023.02.21"]
[WhiteClock "0:02:38"]
[BlackClock "0:01:47"]

1. d4 {[%clk 0:03:00]}  Nf6 {[%clk 0:02:59]} 2. Nc3 {[%clk 0:03:00]}  d5 {[%clk 0:02:58]} 3. Bf4 {[%clk 0:02:59]}  g6 {[%clk 0:02:58]} 4. e3 {[%clk 0:02:59]}  Bg7 {[%clk 0:02:59]} 5. Be2 {[%clk 0:02:59]}  c5 {[%clk 0:02:53]} 6. Nb5 {[%clk 0:02:59]}  Na6 {[%clk 0:02:53]} 7. c3 {[%clk 0:02:59]}  O-O {[%clk 0:02:48]} 8. h4 {[%clk 0:02:59]}  h5 {[%clk 0:02:47]} 9. Nf3 {[%clk 0:02:57]}  Bg4 {[%clk 0:02:43]} 10. Ne5 {[%clk 0:02:55]}  Bxe2 {[%clk 0:02:42]} 11. Qxe2 {[%clk 0:02:56]}  Nd7 {[%clk 0:02:41]} 12. O-O-O {[%clk 0:02:50]}  Nxe5 {[%clk 0:02:41]} 13. dxe5 {[%clk 0:02:51]}  Qa5 {[%clk 0:02:38]} 14. Kb1 {[%clk 0:02:49]}  c4 {[%clk 0:02:29]} 15. Nd4 {[%clk 0:02:47]}  e6 {[%clk 0:02:28]} 16. g4 {[%clk 0:02:47]}  hxg4 {[%clk 0:02:28]} 17. h5 {[%clk 0:02:47]}  Nc5 {[%clk 0:02:26]} 18. hxg6 {[%clk 0:02:46]}  fxg6 {[%clk 0:02:27]} 19. Qxg4 {[%clk 0:02:46]}  Kf7 {[%clk 0:01:50]} 20. Rdg1 {[%clk 0:02:42]}  Rg8 {[%clk 0:01:47]} 21. Qxg6+ {[%clk 0:02:40]}  Ke7 {[%clk 0:01:47]} 22. Rh7 {[%clk 0:02:38]} 1-0


[Site "https://www.chess.com"]